bitfinex-derivatives/quotes_BTCF0:USTF0_20250718
["timestamp","ask_amount","ask_price","bid_price","bid_amount"]
[1752832600277,0.002,118990.0,118980.0,1.37278215]
[1752832600983,0.1699909,118990.0,118980.0,1.37278215]
[1752832601182,0.002,118990.0,118980.0,1.37278215]
[1752832603683,0.002,118990.0,118980.0,0.99164371]
[1752832603884,0.1699909,118990.0,118980.0,1.37278215]
[1752832604687,0.1699909,118990.0,118980.0,0.38576775]
[1752832604988,0.1699909,118990.0,118980.0,1.36394619]
[1752832605485,0.1699909,118990.0,118980.0,0.98280775]
[1752832605689,0.1699909,118990.0,118980.0,1.36394619]
[1752832606485,0.3035109,118990.0,118980.0,0.15194]
[1752832606688,0.69515934,118990.0,118980.0,0.7493]
[1752832608386,0.69515934,118990.0,118980.0,0.74966]
[1752832608788,0.3140209,118990.0,118980.0,0.74966]
[1752832609087,0.69515934,118990.0,118980.0,0.74966]
[1752832610889,0.3140209,118990.0,118980.0,0.74966]
[1752832611584,0.3140209,118990.0,118980.0,0.74934]
[1752832611781,0.69515934,118990.0,118980.0,0.09317]
[1752832611980,0.69515934,118990.0,118980.0,0.67478]
[1752832612181,0.69515934,118990.0,118980.0,0.07738]
[1752832612385,0.69515934,118990.0,118980.0,0.09254]
[1752832612986,0.69515934,118990.0,118980.0,0.07738]
[1752832613292,0.3015249,118980.0,118970.0,0.76120402]
[1752832613492,0.3120349,118980.0,118970.0,0.76120402]
[1752832614391,0.3120349,118980.0,118970.0,0.92922312]
[1752832616786,0.3120349,118980.0,118970.0,0.76120402]
[1752832617291,0.3120349,118980.0,118970.0,0.76096402]
[1752832617994,0.3120349,118980.0,118970.0,0.92898312]
[1752832618292,0.3130349,118980.0,118970.0,0.92898312]
[1752832619992,0.3140349,118980.0,118970.0,0.92898312]
[1752832621189,0.3140349,118980.0,118970.0,0.33158312]
[1752832621387,0.3140349,118980.0,118970.0,0.76084402]
[1752832621587,0.69517334,118980.0,118970.0,0.16356402]
[1752832621791,0.1700049,118980.0,118970.0,0.71272156]
[1752832623295,0.1690049,118980.0,118970.0,0.71272156]
[1752832623489,0.1680049,118980.0,118970.0,0.71272156]
[1752832624289,0.2519987,118990.0,118980.0,0.3143849]
[1752832624489,0.2519987,118990.0,118980.0,1.29332334]
[1752832624490,0.209998,118990.0,118980.0,1.29332334]
[1752832624692,0.251983,119000.0,118990.0,0.24182453]
[1752832624995,0.251983,119000.0,118990.0,0.71242297]
[1752832626084,0.251983,119000.0,118990.0,0.33128453]
[1752832626291,0.2099864,119000.0,118990.0,0.71242297]
[1752832626487,0.1699766,119000.0,118990.0,0.79641287]
[1752832630001,0.1719766,119000.0,118990.0,0.79641287]
[1752832638102,0.23237348,119000.0,118990.0,0.41527443]
[1752832638302,0.23237348,119000.0,118990.0,0.79641287]
[1752832639606,0.23237348,119000.0,118990.0,0.41527443]
[1752832639905,0.23237348,119000.0,118990.0,0.79641287]
[1752832640106,0.23237348,119000.0,118990.0,0.41527443]
[1752832640405,0.23237348,119000.0,118990.0,0.79641287]
[1752832644007,0.28097348,119000.0,118990.0,1.35029757]
[1752832644808,0.25665348,119000.0,118990.0,1.35029757]
[1752832645706,0.23237348,119000.0,118990.0,1.35029757]
[1752832648109,0.1719766,119000.0,118990.0,1.35029757]
[1752832649909,0.1719766,119000.0,118990.0,0.96915913]
[1752832650102,0.1719766,119000.0,118990.0,1.35029757]
[1752832651000,0.1719766,119000.0,118990.0,1.39825391]
[1752832651510,0.1719766,119000.0,118990.0,1.42114864]
[1752832657717,0.1719766,119000.0,118990.0,0.99205386]
[1752832657916,0.1719766,119000.0,118990.0,1.42114864]
[1752832660910,0.1719766,119000.0,118990.0,0.82526864]
[1752832661107,0.1719766,119000.0,118990.0,1.42026864]
[1752832670527,0.1719766,119000.0,118990.0,1.42859538]
[1752832670829,0.1719766,119000.0,118990.0,0.9995006]
[1752832671028,0.1719766,119000.0,118990.0,1.42859538]
[1752832671622,0.1679675,119010.0,118990.0,1.26060468]
[1752832671928,0.2099588,119010.0,119000.0,0.73969178]
[1752832672127,0.2099588,119010.0,119000.0,0.76258651]
[1752832672329,0.74384358,119010.0,119000.0,0.16551473]
[1752832672529,0.78018358,119010.0,119000.0,1.18896951]
[1752832672734,0.78618358,119010.0,119000.0,1.18896951]
[1752832672925,0.78618358,119010.0,119000.0,0.92785173]
[1752832673125,0.78618358,119010.0,119000.0,1.16607478]
[1752832673425,0.78618358,119010.0,119000.0,0.7373]
[1752832673620,0.78618358,119010.0,119000.0,1.16639478]
[1752832673831,0.78618358,119010.0,119000.0,1.33437178]
[1752832674331,0.79459158,119010.0,119000.0,1.33437178]
[1752832674629,0.3654968,119010.0,119000.0,1.16639478]
[1752832674823,0.79459158,119010.0,119000.0,1.33437178]
[1752832675021,0.79459158,119010.0,119000.0,1.16639478]
[1752832675327,0.79459158,119010.0,119000.0,0.7373]
[1752832675529,0.79459158,119010.0,119000.0,1.33437178]
[1752832675727,0.3654968,119010.0,119000.0,1.16639478]
[1752832675931,0.79459158,119010.0,119000.0,1.16639478]
[1752832676634,0.79459158,119010.0,119000.0,0.14262]
[1752832676834,0.79459158,119010.0,119000.0,1.16675478]
[1752832677729,0.3654968,119010.0,119000.0,1.33473178]
[1752832677935,0.79459158,119010.0,119000.0,1.33473178]
[1752832678132,0.40405568,119010.0,119000.0,1.33473178]
[1752832678326,0.79681046,119010.0,119000.0,0.905637]
[1752832678530,0.79681046,119010.0,119000.0,1.33473178]
[1752832680540,0.76094046,119010.0,119000.0,1.33473178]
[1752832680745,0.33184568,119010.0,119000.0,1.33473178]
[1752832681440,0.33184568,119010.0,119000.0,0.73969178]
[1752832681738,0.76094046,119010.0,119000.0,1.33505178]
[1752832682440,0.33184568,119010.0,119000.0,1.33505178]
[1752832682740,0.2714488,119010.0,119000.0,1.33505178]
[1752832683035,0.33192841,119010.0,119000.0,1.33505178]
[1752832683341,0.76102319,119010.0,119000.0,1.33505178]
[1752832683938,0.33192841,119010.0,119000.0,1.33505178]
[1752832684239,0.70054358,119010.0,119000.0,1.33505178]
[1752832684643,0.2714488,119010.0,119000.0,1.33505178]
[1752832685341,0.27643596,119010.0,119000.0,1.33505178]
[1752832687245,0.27643596,119010.0,119000.0,0.905957]
[1752832687447,0.27643596,119010.0,119000.0,1.33505178]
[1752832688247,0.2159588,119010.0,119000.0,1.33505178]
[1752832688442,0.006,119010.0,119000.0,1.76414656]
[1752832688643,0.31957269,119030.0,119020.0,0.3105688]
[1752832688946,0.31957269,119030.0,119020.0,1.33466358]
[1752832689146,0.79725747,119030.0,119020.0,1.33466358]
[1752832689447,0.80415747,119030.0,119020.0,1.33466358]
[1752832689643,0.3074105,119030.0,119020.0,1.16671478]
[1752832689844,0.77537528,119030.0,119020.0,1.16671478]
[1752832690243,0.82011818,119030.0,119020.0,1.16671478]
[1752832690743,0.83314818,119030.0,119020.0,0.73862]
[1752832690945,0.83314818,119030.0,119020.0,1.16771478]
[1752832691851,0.83314818,119030.0,119020.0,0.73862]
[1752832692153,0.89917446,119030.0,119020.0,1.16771478]
[1752832692349,0.89917446,119030.0,119020.0,1.16783478]
[1752832692950,0.47007968,119030.0,119020.0,1.16751478]
[1752832693151,0.89917446,119030.0,119020.0,1.16751478]
[1752832693754,0.90117446,119030.0,119020.0,0.57171478]
[1752832693952,0.90117446,119030.0,119020.0,1.16735478]
[1752832694452,0.89917446,119030.0,119020.0,1.16735478]
[1752832694647,0.90117446,119030.0,119020.0,1.16735478]
[1752832694848,1.49637446,119030.0,119020.0,0.03487]
[1752832695050,0.2204488,119020.0,119010.0,0.75185519]
[1752832695354,0.73580358,119020.0,119010.0,0.75185519]
[1752832695549,0.73580358,119020.0,119010.0,1.18094997]
[1752832696653,0.73580358,119020.0,119010.0,1.34891287]
[1752832697855,0.73680358,119020.0,119010.0,1.34891287]
[1752832698552,0.73680358,119020.0,119010.0,1.18094997]
[1752832699053,0.73680358,119020.0,119010.0,0.75185519]
[1752832699054,0.3077088,119020.0,119010.0,0.75185519]
[1752832699254,0.2947388,119020.0,119010.0,0.91981809]
[1752832700059,0.2214488,119020.0,119010.0,0.91981809]
[1752832703155,0.2214488,119020.0,119010.0,0.94302662]
[1752832705259,0.68907662,119020.0,119010.0,0.17986372]
[1752832706363,0.68907662,119020.0,119010.0,0.15665519]
[1752832708562,0.68907662,119020.0,119010.0,0.13964]
[1752832709256,0.68907662,119020.0,119010.0,0.11511]
[1752832709458,0.68907662,119020.0,118990.0,0.70003383]
[1752832709459,0.308497,119000.0,118990.0,0.70003383]
[1752832709763,0.68986482,119000.0,118990.0,0.13057313]
[1752832711363,0.68986482,119000.0,118990.0,0.14555313]
[1752832711560,0.68986482,119000.0,118990.0,0.18065313]
[1752832712266,0.68986482,119000.0,118990.0,0.15755383]
[1752832717470,0.308497,119000.0,118990.0,0.15755383]
[1752832717669,0.68986482,119000.0,118990.0,0.15755383]
[1752832717970,0.68986482,119000.0,118990.0,0.14257383]
[1752832718170,0.68986482,119000.0,118990.0,0.08785383]
[1752832719271,0.68986482,119000.0,118990.0,0.07094]
[1752832720170,0.308497,119000.0,118990.0,0.07094]
[1752832720366,0.68986482,119000.0,118990.0,0.11867]
[1752832720671,0.68986482,119000.0,118990.0,0.13365]
[1752832720969,0.68986482,119000.0,118990.0,0.13265]
[1752832723074,0.68986482,119000.0,118990.0,0.03584]
[1752832723274,0.2237611,118990.0,118980.0,0.16048549]
[1752832723471,0.68790892,118990.0,118980.0,0.16048549]
[1752832724173,0.68790892,118990.0,118980.0,0.09784]
[1752832724367,1.27906892,118990.0,118980.0,0.09784]
[1752832724773,1.27906892,118990.0,118980.0,0.09884]
[1752832724970,1.27906892,118990.0,118980.0,0.03796]
[1752832725275,1.27906892,118990.0,118980.0,0.03696]
[1752832727676,1.27906892,118990.0,118980.0,0.07369]
[1752832728179,1.33954608,118990.0,118980.0,0.07369]
[1752832728377,1.27906892,118990.0,118980.0,0.07369]
[1752832729274,0.8977011,118990.0,118980.0,0.1437]
[1752832729475,1.27906892,118990.0,118980.0,0.1437]
[1752832729778,0.74838608,118990.0,118980.0,0.1437]
[1752832729980,1.33954608,118990.0,118980.0,0.1437]
[1752832730679,1.33958608,118990.0,118980.0,0.1437]
[1752832731178,0.74838608,118990.0,118980.0,0.1437]
[1752832731379,1.33958608,118990.0,118980.0,0.1437]
[1752832731581,0.95821826,118990.0,118980.0,0.1437]
[1752832731778,1.33958608,118990.0,118980.0,0.1437]
[1752832731978,1.33954608,118990.0,118980.0,0.1437]
[1752832732977,1.27906892,118990.0,118980.0,0.1437]
[1752832733778,1.24471892,118990.0,118980.0,0.3117051]
[1752832733979,0.8633511,118990.0,118980.0,0.3117051]
[1752832735181,0.8633511,118990.0,118980.0,0.1437]
[1752832735480,0.8633511,118990.0,118980.0,0.3117051]
[1752832735680,0.2721911,118990.0,118980.0,0.3117051]
[1752832741582,0.3065411,118990.0,118980.0,0.3117051]
[1752832742084,0.3065411,118990.0,118980.0,0.1437]
[1752832745379,0.3065411,118990.0,118980.0,0.3117052]
[1752832745583,0.3065411,118990.0,118980.0,0.16676462]
[1752832747083,0.3065411,118990.0,118980.0,0.33476982]
[1752832747287,0.3065411,118990.0,118980.0,0.16676462]
[1752832747584,0.68790892,118990.0,118980.0,0.16676462]
[1752832749289,0.3065411,118990.0,118980.0,0.16676462]
[1752832750090,0.3065411,118990.0,118980.0,0.33476992]
[1752832750592,0.3065411,118990.0,118980.0,0.1437]
[1752832751693,0.68790892,118990.0,118980.0,0.1437]
[1752832752393,0.68790892,118990.0,118980.0,0.07369]
[1752832752990,0.68790892,118990.0,118980.0,0.09784]
[1752832753191,0.68790892,118990.0,118980.0,0.12115]
[1752832753393,0.74838608,118990.0,118980.0,0.13517]
[1752832753698,0.36701826,118990.0,118980.0,0.13517]
[1752832753896,0.74838608,118990.0,118980.0,0.13517]
[1752832754490,0.74838608,118990.0,118980.0,0.14249]
[1752832757299,0.36701826,118990.0,118980.0,0.14249]
[1752832757597,0.3065411,118990.0,118980.0,0.14249]
[1752832757802,0.68790892,118990.0,118980.0,0.14249]
[1752832758003,0.68790892,118990.0,118980.0,0.3104952]
[1752832758703,0.68790892,118990.0,118980.0,0.14249]
[1752832760305,0.3065411,118990.0,118980.0,0.14249]
[1752832760602,0.68790892,118990.0,118980.0,0.14249]
[1752832760899,0.73581469,118990.0,118980.0,0.14249]
[1752832763607,0.73581469,118990.0,118980.0,0.15945353]
[1752832764309,0.3065411,118990.0,118980.0,0.15945353]
[1752832764511,0.3065411,118990.0,118980.0,0.77974146]
[1752832764810,0.73581469,118990.0,118980.0,0.18246277]
[1752832767311,0.73581469,118990.0,118980.0,0.15945353]
[1752832767510,0.73581469,118990.0,118980.0,0.18246316]
[1752832769110,0.3065411,118990.0,118980.0,0.18246316]
[1752832769506,0.73581469,118990.0,118980.0,0.16549963]
[1752832770612,0.3065411,118990.0,118980.0,0.16549963]
[1752832770810,0.73581469,118990.0,118980.0,0.16549963]
[1752832771212,0.3065411,118990.0,118980.0,0.16549963]
[1752832771412,0.73581469,118990.0,118980.0,0.16549963]
[1752832771612,0.79629185,118990.0,118980.0,0.14249]
[1752832774619,0.79629185,118990.0,118980.0,0.73325]
[1752832777024,0.36701826,118990.0,118980.0,0.73325]
[1752832777418,0.79629185,118990.0,118980.0,0.9012552]
[1752832778022,0.79629185,118990.0,118980.0,0.73325]
[1752832778324,0.3065411,118990.0,118980.0,0.73325]
[1752832778624,0.73581469,118990.0,118980.0,0.73325]
[1752832779023,0.73581469,118990.0,118980.0,0.9012553]
[1752832779222,0.3065411,118990.0,118980.0,0.9012553]
[1752832779424,0.79634049,118990.0,118980.0,0.9012553]
[1752832780025,0.79634049,118990.0,118980.0,0.73325]
[1752832782827,0.3670669,118990.0,118980.0,0.73325]
[1752832783126,0.79634049,118990.0,118980.0,0.73325]
[1752832783528,0.79634049,118990.0,118980.0,0.14249]
[1752832783826,0.79634049,118990.0,118980.0,0.73576738]
[1752832784822,0.79634049,118990.0,118980.0,0.68098738]
[1752832785027,0.79634049,118990.0,118980.0,0.09038738]
[1752832785224,0.79634049,118990.0,118980.0,0.68098738]
[1752832785922,0.80023749,118990.0,118980.0,0.68098738]
[1752832786429,0.80023749,118990.0,118980.0,0.70371738]
[1752832787128,0.73971169,118990.0,118980.0,0.13649738]
[1752832788228,0.73971169,118990.0,118980.0,0.15954727]
[1752832788529,0.73971169,118990.0,118980.0,0.17292727]
[1752832788832,0.73971169,118990.0,118980.0,0.17965727]
[1752832791431,0.73971169,118990.0,118980.0,0.16295989]
[1752832791926,0.73971169,118990.0,118980.0,0.33096509]
[1752832793137,0.73971169,118990.0,118980.0,0.16295989]
[1752832793537,0.80024133,118990.0,118980.0,0.13991]
[1752832797942,0.73971169,118990.0,118980.0,0.13991]
[1752832798440,0.80024133,118990.0,118980.0,0.13991]
[1752832798641,0.73971169,118990.0,118980.0,0.13991]
[1752832798840,0.3104381,118990.0,118980.0,0.13991]
[1752832799041,0.73971169,118990.0,118980.0,0.13991]
[1752832800742,0.3104381,118990.0,118980.0,0.3079152]
[1752832800938,0.73971169,118990.0,118980.0,0.73718879]
[1752832801134,0.73971169,118990.0,118980.0,0.3079152]
[1752832801338,0.73971169,118990.0,118980.0,0.13991]
[1752832801533,0.73971169,118990.0,118980.0,0.16341387]
[1752832801944,0.3104381,118990.0,118980.0,0.16341387]
[1752832802141,0.73971169,118990.0,118980.0,0.16325428]
[1752832802446,0.73971169,118990.0,118980.0,0.13991]
[1752832802840,0.73971169,118990.0,118980.0,0.1632542]
[1752832804342,0.3104381,118990.0,118980.0,0.1632542]
[1752832804538,0.73971169,118990.0,118980.0,0.1632542]
[1752832805647,0.73971169,118990.0,118980.0,0.13991]
[1752832806046,0.80024133,118990.0,118980.0,0.13991]
[1752832806438,0.3104381,118990.0,118980.0,0.13991]
[1752832806649,0.73971169,118990.0,118980.0,0.13991]
[1752832808748,0.73971169,118990.0,118980.0,0.16335011]
[1752832808948,0.73971169,118990.0,118980.0,0.14997011]
[1752832812754,0.73971169,118990.0,118980.0,0.16322011]
[1752832813553,0.73971169,118990.0,118980.0,0.75330011]
[1752832814556,0.73971169,118990.0,118980.0,0.92130521]
[1752832814750,0.73971169,118990.0,118980.0,1.1825737]
[1752832815152,0.73971169,118990.0,118980.0,0.75330011]
[1752832815656,0.73971169,118990.0,118980.0,0.92130521]
[1752832816054,0.73971169,118990.0,118980.0,1.3505788]
[1752832816653,0.003897,118990.0,118980.0,1.77985239]
[1752832817057,0.06052964,119000.0,118990.0,0.167991]
[1752832817265,0.06052964,119010.0,119000.0,0.3011869]
[1752832817551,0.27046774,119020.0,119000.0,1.99982118]
[1752832817754,0.22848014,119020.0,119010.0,1.15971988]
[1752832818059,0.22848014,119020.0,119010.0,0.73044629]
[1752832818358,0.2434466,119020.0,119010.0,0.73044629]
[1752832818759,0.1679505,119020.0,119010.0,0.73044629]
[1752832818957,0.22838906,119020.0,119010.0,0.73044629]
[1752832819254,0.1744805,119020.0,119010.0,0.73044629]
[1752832819661,0.62646409,119020.0,119010.0,0.73044629]
[1752832819965,0.64044409,119020.0,119010.0,0.73044629]
[1752832820465,0.69719409,119020.0,119010.0,0.73044629]
[1752832820764,0.73072409,119020.0,119010.0,1.32032629]
[1752832821062,0.73072409,119020.0,119010.0,0.73044629]
[1752832821262,0.73072409,119020.0,119010.0,1.32032629]
[1752832821668,0.73072409,119020.0,119010.0,0.73044629]
[1752832821868,0.73072409,119020.0,119010.0,1.15236359]
[1752832822270,0.73072409,119020.0,119010.0,0.56248359]
[1752832822466,0.73072409,119020.0,119010.0,0.13321]
[1752832822672,0.73072409,119020.0,119010.0,0.72305]
[1752832822972,0.68282156,119020.0,119010.0,0.72305]
[1752832823474,0.3014505,119020.0,119010.0,0.72305]
[1752832824771,0.3014505,119020.0,119010.0,0.8910127]
[1752832825075,0.3014505,119020.0,119010.0,0.90824615]
[1752832828574,0.3014505,119020.0,119010.0,0.90808615]
[1752832828773,0.3014505,119020.0,119010.0,0.15044345]
[1752832828974,0.68282156,119020.0,119010.0,0.15044345]
[1752832829168,0.68282156,119020.0,119010.0,0.10847345]
[1752832829368,0.68282156,119020.0,119010.0,0.01723345]
[1752832830068,0.68282156,119020.0,119010.0,0.05077345]
[1752832831070,0.68282156,119020.0,119010.0,0.01723345]
[1752832831569,0.78282156,119020.0,119010.0,0.01723345]
[1752832831773,0.2185728,119010.0,119000.0,0.03354]
[1752832831976,1.27139386,119010.0,119000.0,0.03354]
[1752832832177,1.27139386,119010.0,119000.0,0.06783]
[1752832832880,1.27139386,119010.0,119000.0,0.09124]
[1752832841077,1.27139386,119010.0,119000.0,0.06783]
[1752832841274,0.3004773,119000.0,118990.0,0.13321]
[1752832841478,0.68184836,119000.0,118990.0,0.13321]
[1752832841979,0.68184836,119000.0,118990.0,0.09124]
[1752832842984,0.72972709,119000.0,118990.0,0.09124]
[1752832843481,0.72972709,119000.0,118990.0,0.09224]
[1752832844879,0.72972709,119000.0,118990.0,0.06883]
[1752832845078,0.68204989,119000.0,118990.0,0.06883]
[1752832845484,1.27132989,119000.0,118990.0,0.09084]
[1752832845878,0.8897573,119000.0,118990.0,0.11258]
[1752832846079,1.27132989,119000.0,118990.0,0.12534]
[1752832847188,0.68204989,119000.0,118990.0,0.1322]
[1752832849584,0.68204989,119000.0,118990.0,0.001]
[1752832850285,0.68204989,119000.0,118990.0,0.03376]
[1752832850880,0.68204989,119000.0,118990.0,0.06827]
[1752832851482,0.68204989,119000.0,118990.0,0.03376]
[1752832853286,0.68204989,119000.0,118990.0,0.06827]
[1752832856881,0.3004773,119000.0,118990.0,0.06827]
[1752832857076,0.3004773,119000.0,118990.0,0.2996312]
[1752832857281,0.2098573,119000.0,118990.0,0.68120379]
[1752832857484,0.3572434,119010.0,119000.0,0.2641071]
[1752832857678,0.3152496,119010.0,119000.0,0.68018969]
[1752832857882,0.3152496,119010.0,119000.0,0.2986171]
[1752832858687,0.3476996,119010.0,119000.0,0.2986171]
[1752832860490,0.76083219,119010.0,119000.0,0.11290639]
[1752832860784,0.76083219,119010.0,119000.0,0.02362639]
[1752832861390,0.295277,119000.0,118990.0,0.08432967]
[1752832861593,1.26568959,119000.0,118990.0,0.04981967]
[1752832862191,1.26568959,119000.0,118990.0,0.07348139]
[1752832862585,1.26568959,119000.0,118990.0,0.04981967]
[1752832862988,1.26568959,119000.0,118990.0,0.05081967]
[1752832864093,1.26568959,119000.0,118990.0,0.01805967]
[1752832865093,1.26568959,119000.0,118990.0,0.05081967]
[1752832867491,1.26568959,119000.0,118990.0,0.01805967]
[1752832868094,1.26568959,119000.0,118990.0,0.04174946]
[1752832868294,1.26568959,119000.0,118990.0,0.01805967]
[1752832871893,1.38548959,119000.0,118990.0,0.01805967]
[1752832873498,0.07548881,119020.0,118990.0,1.89326215]
[1752832873694,0.2648172,119030.0,119010.0,0.51634929]
[1752832873998,0.2648172,119030.0,119020.0,0.61377119]
[1752832873999,0.35481331,119030.0,119020.0,0.61377119]
[1752832874199,0.35481331,119030.0,119020.0,0.67891119]
[1752832874693,0.38517331,119030.0,119020.0,0.67891119]
[1752832876298,0.38717331,119030.0,119020.0,0.2973386]
[1752832876905,0.38717331,119030.0,119020.0,0.12939]
[1752832877097,0.38717331,119030.0,119020.0,0.2973391]
[1752832877997,0.38717331,119030.0,119020.0,0.12939]
[1752832878604,0.38717331,119030.0,119020.0,0.2973391]
[1752832880706,0.38717331,119030.0,119020.0,0.12939]
[1752832880905,0.7687459,119030.0,119020.0,0.12939]
[1752832889107,0.7687459,119030.0,119020.0,0.08734]
[1752832894715,0.7687459,119030.0,119020.0,0.06514]
[1752832895207,0.6007988,119030.0,119010.0,0.04516]
[1752832895409,0.1880428,119010.0,118990.0,0.04516]
[1752832895610,1.21431989,119000.0,118990.0,0.34429172]
[1752832895817,1.21431989,119000.0,118990.0,0.32169454]
[1752832896314,1.21431989,119000.0,118990.0,0.15370304]
[1752832896704,1.21431989,119000.0,118990.0,0.12939]
[1752832897809,1.21431989,119000.0,118990.0,0.11594]
[1752832899822,1.21431989,119000.0,118990.0,0.06514]
[1752832900520,1.21431989,119000.0,118990.0,0.06614]
[1752832900922,1.26255989,119000.0,118990.0,0.06614]
[1752832901118,1.26255989,119000.0,118990.0,0.08834]
[1752832904220,1.26255989,119000.0,118990.0,0.11274382]
[1752832906427,1.26255989,119000.0,118990.0,0.11273225]
[1752832907217,1.26255989,119000.0,118990.0,0.08834]
[1752832908027,1.26255989,119000.0,118990.0,0.11282192]
[1752832908228,1.26255989,119000.0,118990.0,0.08834]
[1752832911129,1.26255989,119000.0,118990.0,0.03443]
[1752832911623,1.05633248,119000.0,118990.0,0.03443]
[1752832911828,1.64369248,119000.0,118990.0,0.001]
[1752832912228,1.26211989,119000.0,118990.0,0.001]
[1752832913031,1.26211989,119000.0,118990.0,0.03456]
[1752832914529,0.8805473,119000.0,118990.0,0.03456]
[1752832914831,1.26203989,119000.0,118990.0,0.03456]
[1752832917028,0.67475989,119000.0,118990.0,0.03456]
[1752832917229,0.8804273,119000.0,118990.0,0.06853]
[1752832917425,1.26199989,119000.0,118990.0,0.06853]
[1752832917829,1.26199989,119000.0,118990.0,0.68194369]
[1752832917830,0.2622973,119000.0,118990.0,0.68194369]
[1752832918034,0.8495373,119000.0,118990.0,0.68194369]
[1752832918333,0.8495373,119000.0,118990.0,0.3003711]
[1752832918728,0.8797173,119000.0,118990.0,0.3003711]
[1752832919434,0.8494973,119000.0,118990.0,0.3003711]
[1752832920134,0.8797173,119000.0,118990.0,0.3003711]
[1752832921032,0.8796773,119000.0,118990.0,0.3003711]
[1752832921638,0.2925173,119000.0,118990.0,0.3003711]
[1752832921838,0.8796373,119000.0,118990.0,0.3003711]
[1752832923543,0.2925173,119000.0,118990.0,0.3003711]
[1752832923743,0.8795573,119000.0,118990.0,0.3003711]
[1752832924140,0.8795573,119000.0,118990.0,0.32486516]
[1752832928446,0.8795573,119000.0,118990.0,0.3003711]
[1752832930145,0.1022749,119010.0,118990.0,0.68194369]
[1752832930345,0.2915574,119010.0,119000.0,0.68092999]
[1752832930647,0.3238674,119010.0,119000.0,0.31642833]
[1752832930849,0.73565999,119010.0,119000.0,0.31642833]
[1752832931046,0.2938033,119010.0,119000.0,0.34096235]
[1752832931347,0.2938033,119010.0,119000.0,0.31642833]
[1752832934449,0.67537589,119010.0,119000.0,0.31642833]
[1752832934646,0.39845466,119030.0,119020.0,0.1744892]
[1752832934848,1.33550315,119030.0,119020.0,0.2800292]
[1752832935046,1.16755135,119030.0,119010.0,0.04733892]
[1752832935247,0.66946179,119020.0,119010.0,0.07796892]
[1752832935655,0.66946179,119020.0,119010.0,0.03063]
[1752832935841,1.25614179,119020.0,119010.0,0.03063]
[1752832936245,1.25614179,119020.0,119010.0,0.06124]
[1752832937252,1.25714179,119020.0,119010.0,0.06124]
[1752832938250,1.31754964,119020.0,119010.0,0.06124]
[1752832939350,1.31754964,119020.0,119010.0,0.03063]
[1752832939653,0.2879033,119010.0,119000.0,0.13575093]
[1752832939850,0.2879033,119010.0,119000.0,0.16665132]
[1752832939851,0.66947589,119010.0,119000.0,0.16665132]
[1752832941252,0.66947589,119010.0,119000.0,0.14229093]
[1752832943355,0.66947589,119010.0,119000.0,0.31026863]
[1752832944756,0.66947589,119010.0,119000.0,0.14229093]
[1752832945653,0.66947589,119010.0,119000.0,0.31026863]
[1752832947355,1.05104848,119010.0,119000.0,0.01707093]
[1752832947555,0.2588918,118990.0,118980.0,0.31010708]
[1752832947759,0.6773,118990.0,118980.0,0.31010708]
[1752832948058,0.8452918,118990.0,118980.0,0.33414808]
[1752832948758,0.8743318,118990.0,118980.0,0.33814808]
[1752832949155,0.8743318,118990.0,118980.0,0.31410708]
[1752832949360,0.94180296,118990.0,118980.0,0.33814174]
[1752832950156,0.94180296,118990.0,118980.0,0.31410708]
[1752832951661,0.94176296,118990.0,118980.0,0.31410708]
[1752832952061,0.94176296,118990.0,118980.0,0.33813699]
[1752832952864,0.94176296,118990.0,118980.0,0.31410708]
[1752832953363,0.94176296,118990.0,118960.0,0.04798063]
[1752832953364,0.2460703,118970.0,118960.0,0.04798063]
[1752832953662,1.25581289,118970.0,118960.0,0.04798063]
[1752832953860,1.25581289,118970.0,118960.0,0.01735063]
[1752832954064,1.25581289,118970.0,118960.0,0.04798063]
[1752832954563,0.1947385,118950.0,118940.0,0.06569]
[1752832954766,0.66876109,118950.0,118940.0,0.2932826]
[1752832954968,0.66876109,118950.0,118940.0,0.12522]
[1752832955671,0.66876109,118950.0,118940.0,0.2932826]
[1752832955975,0.66876109,118950.0,118940.0,0.12922]
[1752832956265,0.2871885,118950.0,118940.0,0.10954]
[1752832956470,1.25500109,118950.0,118940.0,0.004]
[1752832957073,0.2875727,118940.0,118930.0,0.04734688]
[1752832957265,0.66914529,118940.0,118930.0,0.04734688]
[1752832958074,0.66914529,118940.0,118930.0,0.07795688]
[1752832958272,0.66914529,118940.0,118930.0,0.07995688]
[1752832958474,0.2875727,118940.0,118930.0,0.07995688]
[1752832958773,0.66914529,118940.0,118930.0,0.08395688]
[1752832959774,0.2875727,118940.0,118930.0,0.08395688]
[1752832959976,0.8738127,118940.0,118930.0,0.08395688]
[1752832960175,0.8738127,118940.0,118930.0,0.10589688]
[1752832960370,1.25538529,118940.0,118930.0,0.10589688]
[1752832963782,1.25538529,118940.0,118930.0,0.02271688]
[1752832965882,0.66914529,118940.0,118930.0,0.02271688]
[1752832966076,1.25538529,118940.0,118930.0,0.05508688]
[1752832966981,1.25538529,118940.0,118930.0,0.02271688]
[1752832967183,0.66914529,118940.0,118930.0,0.02271688]
[1752832967376,1.25538529,118940.0,118930.0,0.02271688]
[1752832967984,1.25538529,118940.0,118930.0,0.006]
[1752832971783,1.25738529,118940.0,118930.0,0.002]
[1752832973287,0.1680771,118930.0,118920.0,0.13447248]
[1752832973488,0.2894071,118930.0,118920.0,0.13447248]
[1752832973987,0.8755271,118930.0,118920.0,0.14104248]
[1752832974885,0.8765271,118930.0,118920.0,0.14104248]
[1752832977089,0.94372894,118930.0,118920.0,0.30913368]
[1752832977289,0.94372894,118930.0,118920.0,0.14104248]
[1752832977689,0.94372894,118930.0,118920.0,0.30913368]
[1752832978485,0.94372894,118930.0,118920.0,0.14104248]
[1752832979491,0.94364894,118930.0,118920.0,0.14104248]
[1752832983493,0.94364894,118930.0,118920.0,0.30913368]
[1752832983698,0.94364894,118930.0,118920.0,0.33275623]
[1752832983990,0.001,118930.0,118920.0,1.09590141]
[1752832984186,0.2289288,118950.0,118940.0,0.292083]
[1752832984394,0.09289,118950.0,118940.0,0.69727525]
[1752832984593,0.2609388,118950.0,118940.0,1.25957559]
[1752832984894,0.12133,118950.0,118940.0,1.28319493]
[1752832985295,0.09289,118950.0,118940.0,0.69727493]
[1752832985596,0.67395139,118950.0,118940.0,0.05598934]
[1752832985793,1.25987139,118950.0,118940.0,0.05598934]
[1752832985993,1.25983139,118950.0,118940.0,0.05598934]
[1752832986190,1.25983139,118950.0,118940.0,0.02361934]
[1752832986792,1.26183139,118950.0,118940.0,0.02361934]
[1752832986993,1.26183139,118950.0,118940.0,0.05598934]
[1752832988795,1.26183139,118950.0,118940.0,0.03237]
[1752832991496,0.8802588,118950.0,118940.0,0.03237]
[1752832991896,1.26183139,118950.0,118940.0,0.03237]
[1752832992100,1.26183139,118950.0,118940.0,0.02349723]
[1752832993097,0.276443,118940.0,118930.0,0.2849571]